bitfinex/quotes_ETHUSD_20250626
["timestamp","ask_amount","ask_price","bid_price","bid_amount"]
[1750902360140,0.2032,2454.5,2454.1,4.07470097]
[1750902360433,0.55,2455.3,2454.4,4.07422762]
[1750902360636,0.2032,2454.8,2454.4,4.27742762]
[1750902361143,10.0,2454.8,2454.3,4.07442983]
[1750902361346,0.55,2454.7,2453.9,4.07514568]
[1750902361655,10.0,2454.6,2453.9,4.07503036]
[1750902361961,0.55,2454.5,2453.1,0.7536]
[1750902362155,0.55,2454.3,2453.5,4.0756769]
[1750902362371,10.0,2454.4,2453.8,4.07520055]
[1750902362661,0.55,2454.3,2453.8,4.07520055]
[1750902362870,10.0,2454.2,2453.7,4.07546053]
[1750902363574,10.55,2454.4,2453.7,0.81511881]
[1750902363744,7.81,2455.2,2453.7,0.7677]
[1750902363932,10.0,2455.0,2453.7,4.84311984]
[1750902364138,12.505,2455.0,2454.0,4.0748692]
[1750902364447,12.505,2455.0,2454.4,4.07417313]
[1750902364766,2.505,2455.2,2454.9,4.0734471]
[1750902364976,2.505,2455.2,2454.4,0.40741731]
[1750902365132,2.505,2455.2,2454.1,0.8325]
[1750902365133,2.505,2455.2,2455.0,4.07324604]
[1750902365330,10.0,2455.1,2454.7,0.788]
[1750902365530,10.0,2455.1,2454.9,4.07345853]
[1750902365764,10.0,2455.1,2454.8,4.07365162]
[1750902365962,10.0,2455.1,2454.9,4.07344557]
[1750902366858,10.0,2455.1,2454.8,4.07358514]
[1750902367058,10.0,2455.1,2454.9,4.07348504]
[1750902367254,10.0,2455.1,2454.7,4.86179722]
[1750902367255,10.0,2455.1,2455.0,4.07331975]
[1750902367474,10.0,2455.1,2454.9,4.07342307]
[1750902367977,7.81,2456.1,2454.9,0.89352009]
[1750902368143,2.505,2455.6,2454.7,0.788]
[1750902368469,0.55,2455.4,2454.7,0.788]
[1750902368649,0.55,2455.4,2454.8,4.07365162]
[1750902369171,0.55,2455.2,2454.4,0.7823]
[1750902369366,2.505,2455.1,2454.8,4.07353515]
[1750902369762,2.505,2455.1,2454.7,4.07375825]
[1750902369937,0.55,2455.0,2454.8,4.07360003]
[1750902370339,0.55,2455.0,2454.7,4.07375825]
[1750902370340,0.55,2455.0,2454.7,4.07375555]
[1750902370593,0.55,2455.0,2454.6,4.07395812]
[1750902370773,0.55,2455.0,2454.7,4.07379347]
[1750902371082,0.31053414,2455.6,2454.4,0.7823]
[1750902371255,0.2032,2455.0,2454.9,4.07348568]
[1750902371775,0.2032,2455.0,2454.8,4.07365127]
[1750902371776,10.2032,2455.2,2455.1,4.07315384]
[1750902372176,0.2032,2455.2,2455.1,4.07315384]
[1750902372352,0.2032,2455.6,2455.4,4.07255935]
[1750902372540,2.7082,2456.0,2455.5,0.2032]
[1750902372747,2.7082,2456.0,2455.3,4.27592313]
[1750902372748,0.2032,2455.7,2455.3,4.27592313]
[1750902373263,0.2032,2455.7,2455.5,4.07235278]
[1750902373478,0.2032,2455.7,2455.5,4.07245707]
[1750902373776,10.0,2455.9,2455.6,4.07232448]
[1750902373938,10.0,2455.9,2455.1,0.7823]
[1750902374146,0.2032,2455.8,2455.4,0.2032]
[1750902374486,0.2032,2455.8,2455.4,4.27584972]
[1750902374970,0.2032,2455.8,2455.4,0.2032]
[1750902375172,0.55,2455.8,2455.2,4.07287669]
[1750902375480,0.2032,2455.6,2455.3,4.07279953]
[1750902375775,0.2032,2455.6,2455.3,4.07276594]
[1750902376177,0.2032,2455.6,2455.4,4.07257788]
[1750902376377,0.2032,2455.6,2455.3,4.07277041]
[1750902376760,0.2032,2455.6,2455.3,4.67835258]
[1750902376965,0.2032,2455.6,2455.4,4.07259639]
[1750902377274,0.2032,2455.6,2455.3,4.67836052]
[1750902377439,0.2032,2455.6,2455.5,4.07249032]
[1750902377662,10.2032,2455.6,2455.2,0.2032]
[1750902377865,11.17195014,2455.6,2455.2,0.2032]
[1750902378574,2.505,2456.0,2455.1,0.7823]
[1750902378779,2.505,2456.0,2455.7,0.2032]
[1750902378974,2.505,2456.0,2455.1,0.7823]
[1750902378975,0.9711149,2455.9,2455.1,0.7823]
[1750902379176,1.1743149,2455.9,2455.4,0.2032]
[1750902379379,0.2032,2455.7,2455.3,4.27590433]
[1750902380098,1.1743149,2455.7,2455.3,0.2032]
[1750902380301,0.2032,2455.7,2455.3,0.2032]
[1750902380715,0.55,2455.6,2455.3,0.2032]
[1750902380875,0.2032,2455.5,2455.0,0.2032]
[1750902381401,0.2032,2455.5,2455.1,4.0730494]
[1750902381899,0.2032,2455.5,2455.1,4.07314581]
[1750902382098,0.2032,2455.5,2455.2,4.07298794]
[1750902382303,0.2032,2455.5,2455.1,4.07309123]
[1750902382871,10.2032,2455.5,2455.2,4.07296484]
[1750902383602,10.2032,2455.5,2455.1,4.07308855]
[1750902384100,10.2032,2455.5,2455.0,4.2764741]
[1750902384317,0.55,2455.4,2454.8,0.7531]
[1750902384602,0.2032,2455.2,2454.9,4.07343898]
[1750902384770,0.2032,2455.2,2454.9,4.07334739]
[1750902384969,0.2032,2455.2,2455.0,4.0733043]
[1750902385173,0.2032,2455.2,2454.9,4.07343414]
[1750902386219,0.2032,2455.2,2454.8,0.2032]
[1750902386381,2.505,2455.4,2455.2,4.07290545]
[1750902386980,2.505,2455.4,2455.1,0.9793]
[1750902386981,2.505,2455.4,2455.3,4.07282205]
[1750902387180,2.505,2455.6,2455.1,0.7761]
[1750902387500,2.505,2455.6,2455.3,0.2032]
[1750902388093,2.505,2455.6,2455.3,4.27601534]
[1750902389512,2.505,2455.6,2455.3,0.2032]
[1750902390515,2.505,2455.6,2455.4,4.07263734]
[1750902391215,2.505,2455.6,2455.3,4.27596883]
[1750902391412,2.505,2455.6,2455.3,0.2032]
[1750902391579,2.505,2455.6,2455.4,4.07260117]
[1750902391785,0.2032,2455.7,2455.6,4.07232448]
[1750902391980,2.452,2455.9,2455.6,0.2032]
[1750902392423,2.452,2455.9,2455.8,0.2032]
[1750902392630,2.452,2455.9,2455.6,0.2032]
[1750902392819,10.2032,2455.8,2455.3,4.07278462]
[1750902393103,18.9997217,2455.8,2455.3,4.27598462]
[1750902393308,18.0262,2455.8,2455.3,4.27598462]
[1750902394205,18.0262,2455.8,2455.4,4.07261778]
[1750902394730,0.9739143,2455.7,2455.4,4.07261778]
[1750902394931,0.9739143,2455.7,2455.3,4.27598821]
[1750902395134,1.52400072,2455.6,2454.8,0.7551]
[1750902395335,0.2032,2455.4,2455.0,0.2032]
[1750902395636,0.2032,2455.2,2455.0,4.07319432]
[1750902395800,0.2032,2455.4,2455.0,4.27639432]
[1750902396228,0.2032,2455.4,2455.1,4.07309779]
[1750902396457,0.2032,2455.4,2455.0,4.27647494]
[1750902396936,0.2032,2455.4,2455.2,4.07297606]
[1750902397246,0.97415165,2455.6,2455.2,4.07297606]
[1750902397397,0.2032,2455.6,2455.2,4.07297606]
[1750902397728,0.2032,2455.6,2455.5,4.07249032]
[1750902397729,10.97424065,2455.6,2455.5,4.07249032]
[1750902397933,0.2032,2455.8,2455.3,1.0352]
[1750902398104,12.451,2456.0,2455.3,0.832]
[1750902398300,10.97410771,2455.9,2455.6,0.2032]
[1750902398940,10.97410771,2455.9,2455.7,4.07204607]
[1750902399127,10.97410771,2455.9,2455.6,4.27547985]
[1750902399643,10.97410771,2455.9,2455.6,0.2032]
[1750902399945,10.97410771,2455.9,2455.6,4.2754932]
[1750902400319,10.0,2455.9,2455.6,0.2032]
[1750902401153,10.0,2455.9,2455.7,4.07211273]
[1750902401354,10.0,2455.9,2455.6,4.70299367]
[1750902401652,10.0,2455.9,2455.6,0.6307663]
[1750902402032,10.0,2455.9,2455.7,4.07211454]
[1750902402226,10.0,2455.9,2455.6,0.6307663]
[1750902402433,10.0,2455.9,2455.8,4.07199283]
[1750902403274,10.0,2455.9,2455.6,0.2032]
[1750902403722,10.0,2455.9,2455.7,4.07215368]
[1750902403924,10.0,2455.9,2455.6,4.27541879]
[1750902404128,10.0,2455.9,2455.4,4.07260702]
[1750902404129,10.0,2456.1,2455.9,4.07181935]
[1750902404357,10.97424872,2456.1,2455.9,4.07181935]
[1750902404655,10.0,2456.1,2455.8,0.2032]
[1750902404857,1.17752034,2456.0,2455.6,4.27540742]
[1750902405052,0.97435264,2455.9,2455.6,0.2032]
[1750902405227,0.97435264,2455.9,2455.4,4.07260066]
[1750902405428,0.2032,2455.7,2455.5,4.07247725]
[1750902405627,0.2032,2455.7,2455.6,4.07232448]
[1750902406065,1.17754227,2456.0,2455.6,5.08995849]
[1750902406226,0.2032,2456.0,2455.7,4.07215091]
[1750902406428,0.2032,2456.0,2455.6,1.0312]
[1750902406630,10.0,2456.1,2456.0,4.07166123]
[1750902406853,10.0,2456.1,2455.9,4.07175738]
[1750902407224,10.0,2456.1,2455.8,0.2032]
[1750902407553,10.0,2456.1,2455.9,4.07178382]
[1750902407874,19.773,2456.2,2456.1,4.07149546]
[1750902408462,19.773,2456.2,2456.1,4.27469546]
[1750902408860,2.451,2456.4,2456.1,0.2032]
[1750902409060,2.451,2456.7,2456.1,4.27462877]
[1750902409265,2.451,2456.7,2456.1,0.2032]
[1750902409266,11.17673688,2456.6,2456.1,0.2032]
[1750902409464,0.55,2456.5,2456.1,0.2032]
[1750902409671,11.52353688,2456.5,2455.9,4.07173048]
[1750902410129,11.52353688,2456.5,2455.7,4.07212778]
[1750902410329,1.52353688,2456.5,2455.2,7.778]
[1750902410530,0.55,2456.3,2455.5,4.07233806]
[1750902410734,0.55,2456.1,2455.5,4.07233806]
[1750902410969,2.451,2456.0,2455.5,4.07233806]
[1750902411141,10.55,2455.9,2455.3,4.07269827]
[1750902411352,11.52353688,2455.9,2455.3,4.07269827]
[1750902411678,11.52322847,2455.9,2455.3,4.07275156]
[1750902411964,20.69365132,2455.9,2455.4,4.07261309]
[1750902412166,19.72042285,2455.9,2455.3,4.07279408]
[1750902412759,19.72042285,2455.9,2454.9,4.07345819]
[1750902412760,0.55,2455.7,2454.9,4.07345819]
[1750902412967,0.55,2455.5,2454.9,4.07345819]
[1750902413177,12.451,2455.4,2454.9,4.07345819]
[1750902413343,2.451,2455.4,2454.9,4.07345819]
[1750902413530,9.769,2455.9,2454.9,0.8135]
[1750902413774,2.451,2455.9,2455.8,4.07199283]
[1750902413970,2.451,2455.9,2455.8,4.88640767]
[1750902414464,7.767,2456.4,2456.1,4.0714117]
[1750902414465,10.0,2456.3,2456.1,4.0714117]
[1750902414671,9.769,2456.8,2456.1,4.07149546]
[1750902414836,2.451,2456.4,2455.9,4.07182702]
[1750902415045,2.451,2456.4,2456.0,4.07166123]
[1750902415289,12.22,2456.8,2456.0,1.18066612]
[1750902415472,10.0,2456.7,2456.5,4.07076762]
[1750902415783,10.0,2456.7,2456.0,0.7735]
[1750902416083,9.769,2457.7,2456.2,4.07132969]
[1750902416285,12.1619273,2457.6,2456.3,0.48543297]
[1750902416580,0.55,2457.4,2456.9,4.07016718]
[1750902416792,0.55,2457.4,2456.3,0.48543297]
[1750902416793,0.9720273,2457.3,2457.0,4.06999886]
[1750902417092,0.9720273,2457.3,2456.8,0.783]
[1750902417383,2.451,2457.4,2457.2,4.06964563]
[1750902417564,2.451,2457.4,2457.1,4.06978108]
[1750902417885,2.451,2457.4,2457.2,4.06964203]
[1750902418087,2.451,2457.4,2456.8,0.783]
[1750902418473,2.451,2457.5,2456.8,0.783]
[1750902418879,2.451,2457.5,2456.9,4.07016972]
[1750902419075,2.451,2457.5,2457.0,4.07000407]
[1750902419280,2.451,2457.5,2456.9,0.48531697]
[1750902419479,2.451,2457.5,2457.0,4.07000407]
[1750902419790,2.451,2457.5,2457.1,4.2730255]
[1750902419989,2.451,2457.5,2457.1,0.2032]
[1750902420189,2.451,2457.5,2457.1,4.27302827]
[1750902420489,2.451,2457.5,2457.1,4.27300203]
[1750902420784,2.451,2457.5,2457.2,4.06966222]
[1750902420984,10.0,2457.6,2457.3,4.06934463]
[1750902421153,10.0,2457.6,2457.3,4.27254463]
[1750902421356,10.0,2457.6,2457.3,0.2032]
[1750902421690,10.0,2457.6,2457.1,0.2032]
[1750902421691,10.2032,2457.6,2457.1,0.2032]
[1750902422070,2.4,2457.7,2457.4,0.2032]
[1750902422285,12.4,2457.7,2457.4,0.2032]
[1750902423365,0.55,2457.6,2456.7,0.8272]
[1750902423566,0.2032,2457.4,2457.1,4.06972603]
[1750902423878,0.2032,2457.4,2457.0,4.06995336]
[1750902425301,0.2032,2457.4,2456.9,0.2032]
[1750902425472,0.2032,2457.4,2456.9,4.2733649]
[1750902425674,0.2032,2457.4,2457.0,4.06989962]
[1750902426302,0.2032,2457.4,2457.1,4.06979157]
[1750902427199,10.0,2458.1,2457.2,4.06963235]
[1750902427500,0.2032,2457.6,2457.2,0.2032]
[1750902428507,0.55,2457.8,2457.0,4.06984189]
[1750902428709,0.2032,2457.4,2456.9,0.2032]
[1750902428886,0.2032,2457.6,2457.2,0.2032]
[1750902429812,0.2032,2457.6,2457.2,4.27279463]
[1750902430310,10.0,2458.1,2457.3,4.06950718]
[1750902430510,0.2032,2457.9,2457.4,4.27250192]
[1750902430890,2.399,2457.8,2457.4,0.2032]
[1750902431091,2.399,2457.8,2457.2,0.8047]
[1750902431092,10.55,2457.7,2457.2,0.8047]
[1750902431292,10.55,2457.7,2457.2,4.06965685]
[1750902431293,0.2032,2457.6,2457.2,4.06965685]
[1750902431691,0.2032,2457.6,2457.1,0.2032]
[1750902431916,0.2032,2457.6,2456.3,8.21243297]
[1750902431917,0.55,2457.3,2456.6,0.81]
[1750902432213,0.55,2456.8,2456.3,0.2032]
[1750902432389,0.2032,2456.5,2456.0,0.2032]
[1750902432587,2.399,2456.4,2456.0,0.2032]
[1750902432998,2.399,2456.4,2456.0,4.27483016]
[1750902433213,2.399,2456.4,2456.0,0.2032]
[1750902433413,2.399,2456.4,2456.0,4.07161298]
[1750902433711,0.2032,2456.3,2455.9,4.07176093]
[1750902434084,0.2032,2456.3,2455.8,0.2032]
[1750902434493,2.399,2456.4,2456.0,4.07155034]
[1750902434720,0.2032,2456.9,2456.2,1.0231]
[1750902434912,10.0,2457.2,2456.2,1.0231]
[1750902434913,2.4,2457.1,2456.7,4.07036961]
[1750902435208,10.0,2457.0,2456.7,0.2032]
[1750902435704,10.0,2457.0,2456.7,4.2735361]
[1750902435903,10.0,2457.0,2456.7,0.2032]
[1750902436714,10.0,2457.0,2456.7,4.27364568]
[1750902436917,10.0,2457.0,2456.8,4.07030196]
[1750902437285,10.0,2457.0,2456.7,0.2032]
[1750902437489,11.26032,2457.0,2456.2,0.8199]
[1750902437834,0.2032,2456.9,2456.5,0.2032]
[1750902438216,0.1532,2456.9,2456.5,0.2032]
[1750902438523,2.4,2457.1,2456.5,4.07081161]
[1750902438820,2.4,2457.1,2456.8,0.2032]
[1750902439025,10.2032,2457.2,2456.8,0.9642]
[1750902439026,12.6032,2457.2,2456.8,0.9642]
[1750902439319,12.6032,2457.2,2456.8,1.46766737]
[1750902440427,12.6032,2457.2,2456.9,4.07016121]
[1750902441135,12.4,2457.2,2456.8,5.3347913]
[1750902441438,9.764,2457.3,2457.1,4.27303842]
[1750902441731,0.2032,2457.5,2456.9,4.60361825]
[1750902441732,2.399,2457.5,2457.2,4.27277141]
[1750902441911,2.399,2457.5,2457.4,4.06934158]
[1750902442104,0.2032,2458.0,2457.5,4.06906352]
[1750902442301,0.2032,2458.0,2457.6,0.2032]
[1750902442535,10.0,2457.9,2457.6,0.2032]
[1750902443033,2.399,2458.1,2457.6,0.42723313]
[1750902443209,13.36987245,2458.1,2457.8,0.2032]
[1750902443410,12.399,2458.1,2457.8,0.2032]
[1750902443938,12.399,2458.1,2457.6,0.2032]
[1750902444309,12.399,2458.1,2457.6,4.27217579]
[1750902444509,12.399,2458.1,2457.6,0.2032]
[1750902444711,12.399,2458.1,2457.6,4.27215516]
[1750902445218,12.399,2458.1,2457.6,5.10630288]
[1750902445418,12.399,2458.1,2457.7,4.06884288]
[1750902445719,12.399,2458.1,2457.8,4.06865072]
[1750902446039,10.0,2458.1,2457.8,4.06865072]
[1750902446345,0.2032,2458.5,2458.0,0.2032]
[1750902446540,10.0,2458.3,2457.5,4.06902229]
[1750902446728,11.52099989,2458.3,2457.4,0.8148]
[1750902446932,0.2032,2458.1,2457.6,0.2032]
[1750902447131,2.399,2458.0,2457.6,4.27214448]
[1750902447442,2.399,2458.0,2457.7,4.0688227]
[1750902448013,2.399,2458.0,2457.8,4.06866394]
[1750902448727,2.399,2458.0,2457.7,4.06881652]
[1750902449246,2.399,2458.0,2457.8,4.06866971]
[1750902449746,0.2032,2458.1,2457.8,0.83408579]
[1750902449912,0.55,2458.5,2457.6,0.2032]
[1750902449913,0.2032,2458.5,2458.1,0.7889]
[1750902450246,2.399,2458.6,2458.4,4.06761634]
[1750902450541,2.352,2458.8,2458.5,4.06752084]
[1750902450707,0.2032,2459.0,2458.6,4.06729974]
[1750902450911,12.352,2458.9,2458.5,0.2032]
[1750902451123,0.2032,2459.0,2458.6,4.0673101]
[1750902451332,9.763,2459.1,2458.7,4.06718997]
[1750902451537,9.763,2459.1,2458.6,1.53459462]
[1750902451538,10.0,2459.0,2458.8,4.27022068]
[1750902452122,10.0,2459.0,2458.8,0.2032]
[1750902452717,10.0,2459.0,2458.6,0.2032]
[1750902453766,10.0,2459.0,2457.3,10.313]
[1750902453767,0.2032,2458.6,2458.2,0.2032]
[1750902453969,2.352,2458.6,2458.2,0.2032]
[1750902454162,2.7904,2458.6,2458.2,0.2032]
[1750902454367,2.5872,2458.6,2458.1,4.06812694]
[1750902454541,0.2032,2458.5,2458.1,4.27132694]
[1750902455069,0.2032,2458.5,2458.1,0.2032]
[1750902455371,0.2032,2458.5,2458.1,4.27135905]
[1750902456469,0.48224,2458.5,2458.1,0.2032]
[1750902456771,0.2032,2458.4,2457.9,4.2715501]
[1750902456970,0.2032,2458.4,2457.9,0.2032]
[1750902457138,0.2032,2458.1,2457.6,4.27220181]
[1750902457340,0.2032,2458.1,2457.8,4.06863055]
[1750902457570,0.2032,2458.1,2457.6,0.2032]
[1750902458670,0.2032,2458.1,2457.6,4.27217832]
[1750902458841,2.351,2458.0,2457.6,0.2032]
[1750902459049,2.351,2458.0,2457.7,4.06873304]
[1750902459585,2.351,2458.0,2457.6,4.27214762]
[1750902459809,2.351,2458.0,2457.2,0.7523]
[1750902459810,0.55,2457.9,2457.2,0.7523]
[1750902459954,0.2032,2457.8,2457.3,0.2032]
[1750902460151,10.55,2457.9,2457.0,4.06988836]
[1750902460465,0.2032,2458.6,2457.8,0.8198]
[1750902460662,10.45862,2458.6,2458.2,4.06800452]
[1750902460865,10.45862,2458.6,2458.2,4.27120452]
[1750902461461,0.55,2458.5,2457.8,0.8198]
[1750902461661,10.25542,2458.6,2458.2,4.06801402]
[1750902461867,0.2032,2458.6,2458.3,4.06770632]
[1750902462055,10.0,2458.5,2458.3,4.06770632]
[1750902462586,2.351,2458.5,2458.0,4.06824858]
[1750902462750,0.2032,2458.4,2458.0,4.27144858]
[1750902462950,2.5542,2458.4,2458.0,4.27144858]
[1750902463153,2.5542,2458.4,2457.8,4.8884621]
[1750902463154,2.351,2458.4,2458.3,4.06785176]
[1750902463355,2.351,2458.5,2458.3,4.06771923]
[1750902463560,2.351,2458.5,2458.3,5.08511923]
[1750902463980,0.2032,2458.9,2458.3,1.93271176]
[1750902464193,2.351,2458.9,2458.7,4.27038997]
[1750902464396,2.351,2458.9,2458.7,0.2032]
[1750902464599,10.0,2458.8,2458.4,4.27077712]
[1750902464903,10.0,2458.8,2458.4,4.27087777]
[1750902465087,0.2032,2458.9,2458.4,4.27085488]
[1750902465396,2.351,2458.9,2458.6,0.2032]
[1750902465797,2.351,2458.9,2458.7,4.06717893]
[1750902466008,2.351,2458.9,2458.6,4.27052505]
[1750902466378,2.351,2458.9,2458.7,4.06715677]
[1750902466988,2.351,2458.9,2458.6,4.27048775]
[1750902467311,0.2032,2459.0,2458.6,0.2032]
[1750902468187,10.2032,2459.0,2458.6,0.2032]
[1750902469371,0.2032,2459.0,2458.7,4.89137398]
[1750902469706,2.351,2459.7,2459.0,4.06655586]
[1750902470002,2.351,2459.7,2459.1,4.06647006]
[1750902470003,10.2032,2459.6,2459.1,4.06647006]
[1750902470204,11.17293122,2459.6,2459.2,0.2032]
[1750902470504,12.52532434,2459.6,2459.2,0.2032]
[1750902470706,12.52532434,2459.6,2459.2,4.26955328]
[1750902471106,12.52532434,2459.6,2459.2,0.2032]
[1750902471308,12.52532434,2459.6,2459.2,4.26955245]
[1750902471608,2.351,2459.6,2459.4,0.2032]
[1750902472180,9.759,2460.3,2459.4,4.06591114]
[1750902472380,3.32052047,2460.2,2459.4,4.06602089]
[1750902472606,10.96952047,2460.1,2459.4,4.06602089]
[1750902472831,10.96952047,2460.1,2459.5,0.8073]
[1750902472832,0.96952047,2460.1,2459.5,0.8073]
[1750902473004,0.33205205,2460.1,2459.5,0.8073]
[1750902473210,0.33205205,2460.1,2459.5,4.87310487]
[1750902473819,0.33205205,2460.1,2459.5,0.8073]
[1750902474684,0.55,2460.0,2459.2,4.83835633]
[1750902474881,1.08820521,2459.9,2459.3,4.06618032]
[1750902475310,1.08820521,2459.9,2459.2,0.7721]
[1750902475510,11.08820521,2459.9,2459.0,8.3881]
[1750902475680,1.08820521,2459.9,2459.1,4.06651912]
[1750902475884,1.08820521,2459.9,2459.2,4.06624866]
[1750902476127,0.71120789,2459.8,2459.3,4.06605851]
[1750902476425,2.351,2459.8,2459.4,4.06593184]
[1750902476581,2.351,2459.8,2459.0,8.3881]
[1750902476787,2.351,2459.8,2459.4,4.06598249]
[1750902477325,2.351,2460.1,2459.6,4.06555939]
[1750902477482,0.96784756,2460.3,2459.7,4.06553375]
[1750902477687,2.351,2460.3,2459.7,4.06553375]
[1750902477910,0.96784756,2460.4,2459.7,0.89400919]
[1750902478219,0.31023402,2460.6,2460.1,4.06477342]
[1750902478517,12.351,2460.8,2460.1,4.06477342]
[1750902478721,2.351,2460.8,2460.0,4.06497434]
[1750902478922,12.351,2460.8,2459.7,4.06552727]
[1750902479124,10.0,2460.8,2459.9,4.06520503]
[1750902479333,10.0,2460.8,2459.5,0.8087]
[1750902479334,1.42619586,2460.7,2460.0,4.06487595]
[1750902479531,1.42619586,2460.7,2459.6,4.06570174]
[1750902479827,2.35,2460.6,2459.9,4.06504747]
[1750902480034,2.35,2460.6,2459.8,4.06532181]
[1750902480233,12.35,2460.6,2459.9,4.06515674]
[1750902480431,2.35,2460.6,2460.0,4.06500847]
[1750902480737,10.0,2460.8,2460.0,4.06500847]
[1750902480920,2.308,2460.7,2459.9,4.06510819]
[1750902481122,2.308,2460.7,2460.0,4.06493382]
[1750902481300,2.308,2460.7,2459.9,4.0651568]
[1750902481801,0.55,2460.6,2459.8,4.06533259]
[1750902481998,10.55,2460.6,2459.6,4.06567459]
[1750902482338,0.2032,2460.3,2459.8,0.2032]
[1750902482632,0.2032,2460.3,2459.9,4.06510586]
[1750902482805,0.2032,2460.4,2460.0,0.2032]
[1750902483797,10.2032,2460.4,2460.0,0.2032]
[1750902483999,0.2032,2460.0,2459.4,0.2032]
[1750902484212,2.5102,2460.0,2459.7,0.2032]
[1750902485429,2.5102,2460.0,2459.5,4.06579654]
[1750902485430,2.307,2460.0,2459.2,0.7801]
[1750902485730,2.307,2460.0,2459.8,0.2032]
[1750902486416,2.307,2460.0,2459.8,4.26843489]
[1750902486596,0.55,2460.5,2459.8,4.26843489]
[1750902486597,0.2032,2460.5,2459.9,0.2032]
[1750902486800,10.0,2460.6,2460.1,4.06478143]
[1750902487026,10.0,2460.6,2460.4,0.2032]
[1750902487203,10.0,2460.6,2458.8,4.06689424]
[1750902487204,0.2032,2460.5,2460.1,0.2032]
[1750902487405,0.7532,2460.5,2460.1,0.2032]
[1750902487621,0.2032,2460.5,2460.0,0.2032]
[1750902488540,2.307,2460.4,2460.0,0.2032]
[1750902488722,0.2032,2460.5,2460.1,0.8139]
[1750902488922,0.2032,2460.5,2460.0,0.2032]
[1750902489340,10.0,2460.6,2460.1,4.06473976]
[1750902489510,10.0,2460.6,2460.4,0.2032]
[1750902490363,10.0,2460.6,2460.3,0.2032]
[1750902490537,10.0,2460.6,2460.0,4.06500037]
[1750902490704,0.2032,2460.5,2460.1,0.2032]
[1750902492524,0.2032,2460.5,2460.1,4.26803197]
[1750902492725,0.2032,2460.5,2460.1,1.03652367]
[1750902493124,10.96786744,2460.6,2460.0,4.06493588]
[1750902493326,2.307,2460.5,2460.3,0.2032]
[1750902493706,12.307,2460.6,2460.3,0.2032]
[1750902493905,12.307,2460.6,2460.1,4.06483789]
[1750902494154,10.0,2460.6,2460.5,0.2032]
[1750902494838,12.061,2460.7,2460.6,4.06404941]
[1750902495048,9.754,2460.7,2460.6,4.26644941]
[1750902495243,0.2224347,2461.5,2460.6,5.09947834]
[1750902495549,2.307,2461.2,2460.9,4.06349817]
[1750902496722,1.19059807,2461.5,2460.8,0.8187]
[1750902496723,2.5294347,2461.5,2461.0,4.06327872]
[1750902496919,2.5294347,2461.5,2460.9,4.06349542]
[1750902497124,2.5294347,2461.5,2460.8,4.88225429]
[1750902497336,2.5294347,2461.5,2460.9,4.6960266]
[1750902497552,2.5294347,2461.5,2461.0,4.06331109]
[1750902497755,2.5294347,2461.5,2460.9,0.63250433]
[1750902497756,2.5294347,2461.5,2460.9,4.69599424]
[1750902498359,2.5294347,2461.5,2460.9,0.63250433]
[1750902498549,3.49735921,2461.5,2460.6,4.89699212]
[1750902498751,4.06360597,2460.9,2459.8,0.8043]
[1750902498950,10.0,2461.3,2459.9,4.06514677]
[1750902498951,10.83492451,2460.8,2459.9,4.06514677]
[1750902499262,10.0,2460.6,2459.9,4.06514677]
[1750902499450,10.96792451,2460.6,2460.0,0.48694468]
[1750902499822,10.96792451,2460.6,2459.9,4.06504902]
[1750902500024,10.96792451,2460.6,2459.8,4.86961274]
[1750902500268,10.96792451,2460.6,2459.9,4.06516458]
[1750902501565,10.96792451,2460.6,2459.9,4.06507718]
[1750902501762,0.96792451,2460.6,2459.8,0.8043]
[1750902501927,0.96792451,2461.0,2459.8,0.8043]
[1750902502133,11.92571696,2460.9,2460.0,4.06498506]
[1750902502468,0.96792451,2460.8,2460.0,4.06497833]
[1750902502672,0.96792451,2460.7,2460.0,4.06504065]
[1750902502959,0.96792451,2460.6,2460.0,4.06504065]
[1750902503290,0.96792451,2460.8,2460.0,4.06504065]
[1750902503431,10.96792451,2460.7,2459.8,0.8043]
[1750902503630,3.27492451,2460.6,2459.8,4.86956379]
[1750902503827,0.96792451,2460.5,2459.5,4.85495663]
[1750902504153,10.96792451,2460.4,2459.5,4.85483528]
[1750902504362,0.96792451,2460.3,2459.5,4.06573528]
[1750902504577,8.51692451,2460.2,2459.5,4.06573528]
[1750902504778,0.96792451,2460.1,2459.6,4.06568709]
[1750902504962,3.27492451,2460.0,2459.5,4.06576338]
[1750902505363,0.96792451,2460.0,2459.6,4.06570174]
[1750902505582,10.0,2460.1,2459.9,0.2032]
[1750902505739,2.307,2460.1,2459.9,0.2032]
[1750902506075,10.0,2460.1,2459.9,0.2032]
[1750902506276,2.307,2460.2,2459.9,0.2032]
[1750902506432,2.307,2460.2,2459.9,4.26833699]
[1750902506638,7.7492,2460.4,2459.9,0.83337432]
[1750902506639,2.307,2460.4,2459.9,0.83337432]
[1750902506840,0.97072894,2460.3,2460.0,0.2032]
[1750902507066,0.97072894,2460.2,2459.7,4.06552468]
[1750902507369,1.17392894,2460.2,2459.8,0.2032]
[1750902508937,0.97072894,2460.1,2459.8,0.2032]
[1750902509136,0.97072894,2460.1,2459.6,4.06564789]
[1750902509367,0.2032,2460.0,2459.6,4.26878682]
[1750902509752,0.2032,2460.0,2459.6,0.2032]
[1750902509936,0.2032,2460.0,2459.7,4.06552232]
[1750902510470,0.2032,2460.0,2459.6,4.26884893]
[1750902510677,0.2032,2460.0,2459.6,0.2032]
[1750902510832,0.2032,2460.0,2459.7,4.06553262]
[1750902511253,2.268,2459.9,2459.7,4.06553262]
[1750902512265,10.2032,2460.0,2459.7,4.06553376]
[1750902512575,2.268,2459.9,2459.7,4.06553376]